[Event "Masters Tournament (MTO)"]
[Site "Biel, Switzerland"]
[Date "2026.07.22"]
[Round "9.23"]
[White "Papaux, Jeremie"]
[Black "Dauth, Benjamin"]
[Result "0-1"]
[TimeControl "100+30+30sec/move"]
[WhiteTitle "-"]
[BlackTitle "-"]
[WhiteFideId "1340867"]
[BlackFideId "4688104"]
[WhiteElo "2102"]
[BlackElo "2247"]

1. d4 {[%clk 01:40:57]} {[%emt 00:00:02]} d5 {[%clk 01:40:43]} {[%emt
00:00:18]} 2. c4 {[%clk 01:41:22]} {[%emt 00:00:07]} e6 {[%clk 01:41:09]}
{[%emt 00:00:02]} 3. Nf3 {[%clk 01:41:46]} {[%emt 00:00:06]} Nf6 {[%clk
01:41:33]} {[%emt 00:00:06]} 4. Nc3 {[%clk 01:42:12]} {[%emt 00:00:04]} Be7
{[%clk 01:41:48]} {[%emt 00:00:15]} 5. Bg5 {[%clk 01:42:36]} {[%emt 00:00:06]}
O-O {[%clk 01:41:58]} {[%emt 00:00:20]} 6. e3 {[%clk 01:43:02]} {[%emt
00:00:04]} Ne4 {[%clk 01:37:49]} {[%emt 00:04:39]} 7. Bxe7 {[%clk 01:42:43]}
{[%emt 00:00:49]} Qxe7 {[%clk 01:38:04]} {[%emt 00:00:15]} 8. Nxe4 {[%clk
01:38:36]} {[%emt 00:04:37]} dxe4 {[%clk 01:38:29]} {[%emt 00:00:06]} 9. Nd2
{[%clk 01:38:56]} {[%emt 00:00:10]} f5 {[%clk 01:38:49]} {[%emt 00:00:09]} 10.
Be2 {[%clk 01:38:35]} {[%emt 00:00:51]} e5 {[%clk 01:38:56]} {[%emt 00:00:24]}
11. d5 {[%clk 01:38:10]} {[%emt 00:00:55]} Nd7 {[%clk 01:37:24]} {[%emt
00:02:02]} 12. O-O {[%clk 01:38:02]} {[%emt 00:00:37]} a5 {[%clk 01:37:40]}
{[%emt 00:00:14]} 13. Qb3 {[%clk 01:28:04]} {[%emt 00:10:28]} a4 {[%clk
01:35:32]} {[%emt 00:02:39]} 14. Qc3 {[%clk 01:28:25]} {[%emt 00:00:09]} Ra6
{[%clk 01:35:42]} {[%emt 00:00:20]} 15. f3 {[%clk 01:28:09]} {[%emt 00:00:45]}
exf3 {[%clk 01:31:53]} {[%emt 00:04:20]} 16. Rxf3 {[%clk 01:25:50]} {[%emt
00:02:49]} Rh6 {[%clk 01:31:52]} {[%emt 00:00:30]} 17. Raf1 {[%clk 01:23:25]}
{[%emt 00:02:55]} Nf6 {[%clk 01:29:40]} {[%emt 00:02:43]} 18. Bd1 {[%clk
01:15:45]} {[%emt 00:08:09]} Bd7 {[%clk 01:27:46]} {[%emt 00:02:25]} 19. e4
{[%clk 01:11:13]} {[%emt 00:05:01]} f4 {[%clk 01:27:16]} {[%emt 00:01:00]} 20.
c5 {[%clk 01:11:07]} {[%emt 00:00:37]} Ng4 {[%clk 01:10:15]} {[%emt 00:17:30]}
21. h3 {[%clk 01:06:12]} {[%emt 00:05:25]} Ne3 {[%clk 01:08:02]} {[%emt
00:02:43]} 22. Qxe3 {[%clk 01:04:41]} {[%emt 00:02:02]} fxe3 {[%clk 01:07:59]}
{[%emt 00:00:33]} 23. Rxf8+ {[%clk 01:05:00]} {[%emt 00:00:10]} Qxf8 {[%clk
01:08:24]} {[%emt 00:00:05]} 24. Rxf8+ {[%clk 01:05:19]} {[%emt 00:00:11]} Kxf8
{[%clk 01:08:51]} {[%emt 00:00:04]} 25. Nc4 {[%clk 01:05:07]} {[%emt 00:00:42]}
e2 {[%clk 00:52:21]} {[%emt 00:17:00]} 26. Bxe2 {[%clk 01:05:29]} {[%emt
00:00:07]} Bb5 {[%clk 00:52:47]} {[%emt 00:00:05]} 27. Kf2 {[%clk 01:05:46]}
{[%emt 00:00:13]} Bxc4 {[%clk 00:51:24]} {[%emt 00:01:53]} 28. Bxc4 {[%clk
01:06:07]} {[%emt 00:00:08]} b6 {[%clk 00:51:48]} {[%emt 00:00:07]} 29. d6
{[%clk 00:59:40]} {[%emt 00:06:56]} bxc5 {[%clk 00:52:13]} {[%emt 00:00:06]} 30.
dxc7 {[%clk 00:59:39]} {[%emt 00:00:31]} Rc6 {[%clk 00:52:37]} {[%emt
00:00:06]} 31. Bb5 {[%clk 01:00:01]} {[%emt 00:00:07]} Rxc7 {[%clk 00:53:03]}
{[%emt 00:00:04]} 32. Bxa4 {[%clk 01:00:21]} {[%emt 00:00:11]} Ra7 {[%clk
00:52:38]} {[%emt 00:00:55]} 33. Bb3 {[%clk 01:00:22]} {[%emt 00:00:29]} Rb7
{[%clk 00:53:00]} {[%emt 00:00:09]} 34. Ke3 {[%clk 00:59:28]} {[%emt 00:01:22]}
Ke7 {[%clk 00:53:23]} {[%emt 00:00:07]} 35. Kd3 {[%clk 00:59:15]} {[%emt
00:00:44]} Rb4 {[%clk 00:53:47]} {[%emt 00:00:06]} 36. g3 {[%clk 00:52:27]}
{[%emt 00:07:18]} h6 {[%clk 00:51:08]} {[%emt 00:03:08]} 37. h4 {[%clk
00:52:19]} {[%emt 00:00:38]} Kd6 {[%clk 00:51:32]} {[%emt 00:00:07]} 38. g4
{[%clk 00:52:36]} {[%emt 00:00:12]} g5 {[%clk 00:51:29]} {[%emt 00:00:34]} 39.
h5 {[%clk 00:52:36]} {[%emt 00:00:30]} Kc7 {[%clk 00:51:35]} {[%emt 00:00:24]}
40. Be6 {[%clk 00:51:52]} {[%emt 00:01:13]} Rxb2 {[%clk 00:51:28]} {[%emt
00:00:37]} 41. Kc4 {[%clk 00:51:47]} {[%emt 00:00:35]} Kc6 {[%clk 00:46:24]}
{[%emt 00:05:35]} 42. Kc3 {[%clk 00:51:51]} {[%emt 00:00:26]} Rb4 {[%clk
00:46:24]} {[%emt 00:00:29]} 43. Kd3 {[%clk 00:51:58]} {[%emt 00:00:23]} Rd4+
{[%clk 00:46:36]} {[%emt 00:00:19]} 44. Ke3 {[%clk 00:52:03]} {[%emt 00:00:24]}
Kb5 {[%clk 00:46:56]} {[%emt 00:00:11]} 45. Bd7+ {[%clk 00:52:16]} {[%emt
00:00:16]} Rxd7 {[%clk 00:47:17]} {[%emt 00:00:10]} 0-1

[Event "Masters Tournament (MTO)"]
[Site "Biel, Switzerland"]
[Date "2026.07.22"]
[Round "9.24"]
[White "Hasenohr, Benedict"]
[Black "Gerrits, Augustin"]
[Result "1-0"]
[TimeControl "100+30+30sec/move"]
[WhiteTitle "-"]
[BlackTitle "-"]
[WhiteFideId "1303309"]
[BlackFideId "285358"]
[WhiteElo "2247"]
[BlackElo "2072"]

1. d4 {[%clk 01:40:57]} {[%emt 00:00:03]} d5 {[%clk 01:40:45]} {[%emt
00:00:14]} 2. c4 {[%clk 01:41:23]} {[%emt 00:00:04]} c6 {[%clk 01:40:46]}
{[%emt 00:00:29]} 3. cxd5 {[%clk 01:41:48]} {[%emt 00:00:05]} cxd5 {[%clk
01:41:09]} {[%emt 00:00:07]} 4. Bf4 {[%clk 01:42:14]} {[%emt 00:00:04]} Nc6
{[%clk 01:41:20]} {[%emt 00:00:20]} 5. e3 {[%clk 01:42:40]} {[%emt 00:00:04]}
Nf6 {[%clk 01:41:02]} {[%emt 00:00:50]} 6. Bd3 {[%clk 01:43:05]} {[%emt
00:00:03]} e6 {[%clk 01:35:22]} {[%emt 00:06:10]} 7. Nc3 {[%clk 01:43:16]}
{[%emt 00:00:18]} Bd6 {[%clk 01:34:09]} {[%emt 00:01:44]} 8. Bxd6 {[%clk
01:43:38]} {[%emt 00:00:08]} Qxd6 {[%clk 01:34:33]} {[%emt 00:00:05]} 9. f4
{[%clk 01:44:03]} {[%emt 00:00:05]} Bd7 {[%clk 01:29:47]} {[%emt 00:05:16]} 10.
Rc1 {[%clk 01:43:04]} {[%emt 00:01:30]} O-O {[%clk 01:11:03]} {[%emt 00:19:14]}
11. g4 {[%clk 01:42:37]} {[%emt 00:00:57]} Rfc8 {[%clk 01:03:27]} {[%emt
00:08:05]} 12. g5 {[%clk 01:42:18]} {[%emt 00:00:49]} Ne4 {[%clk 01:03:13]}
{[%emt 00:00:45]} 13. Nxe4 {[%clk 01:40:18]} {[%emt 00:02:30]} dxe4 {[%clk
01:03:38]} {[%emt 00:00:05]} 14. Bxe4 {[%clk 01:40:35]} {[%emt 00:00:12]} Na5
{[%clk 01:02:46]} {[%emt 00:01:23]} 15. Ne2 {[%clk 01:16:55]} {[%emt 00:24:10]}
Qb4+ {[%clk 00:54:36]} {[%emt 00:08:40]} 16. Nc3 {[%clk 00:46:06]} {[%emt
00:31:18]} Nc4 {[%clk 00:42:46]} {[%emt 00:12:20]} 17. Qb3 {[%clk 00:45:55]}
{[%emt 00:00:41]} Qd6 {[%clk 00:34:57]} {[%emt 00:08:19]} 18. Kf2 {[%clk
00:42:36]} {[%emt 00:03:49]} Nd2 {[%clk 00:31:29]} {[%emt 00:03:58]} 19. Bxh7+
{[%clk 00:42:08]} {[%emt 00:00:58]} Kxh7 {[%clk 00:30:02]} {[%emt 00:01:58]} 20.
Qc2+ {[%clk 00:42:34]} {[%emt 00:00:04]} g6 {[%clk 00:30:27]} {[%emt 00:00:05]}
21. Qxd2 {[%clk 00:42:58]} {[%emt 00:00:05]} Bc6 {[%clk 00:30:47]} {[%emt
00:00:10]} 22. d5 {[%clk 00:38:58]} {[%emt 00:04:31]} exd5 {[%clk 00:31:11]}
{[%emt 00:00:05]} 23. Ne4 {[%clk 00:39:19]} {[%emt 00:00:10]} Qe6 {[%clk
00:31:06]} {[%emt 00:00:34]} 24. Nf6+ {[%clk 00:39:43]} {[%emt 00:00:06]} Kg7
{[%clk 00:31:28]} {[%emt 00:00:09]} 25. Qd4 {[%clk 00:39:47]} {[%emt 00:00:25]}
Kf8 {[%clk 00:31:54]} {[%emt 00:00:04]} 26. h4 {[%clk 00:39:23]} {[%emt
00:00:54]} Be8 {[%clk 00:31:31]} {[%emt 00:00:54]} 27. h5 {[%clk 00:36:30]}
{[%emt 00:03:23]} Rxc1 {[%clk 00:31:53]} {[%emt 00:00:08]} 28. Qb4+ {[%clk
00:36:39]} {[%emt 00:00:20]} 1-0

[Event "Masters Tournament (MTO)"]
[Site "Biel, Switzerland"]
[Date "2026.07.22"]
[Round "9.25"]
[White "Cervelli, Eduard"]
[Black "Tkhoruk, Roman"]
[Result "1-0"]
[TimeControl "100+30+30sec/move"]
[WhiteTitle "-"]
[BlackTitle "-"]
[WhiteFideId "1351800"]
[BlackFideId "34161589"]
[WhiteElo "2197"]
[BlackElo "1967"]

1. e4 {[%clk 01:40:56]} {[%emt 00:00:04]} c6 {[%clk 01:40:41]} {[%emt
00:00:19]} 2. d4 {[%clk 01:41:06]} {[%emt 00:00:19]} d5 {[%clk 01:40:38]}
{[%emt 00:00:34]} 3. e5 {[%clk 01:41:25]} {[%emt 00:00:10]} Bf5 {[%clk
01:40:47]} {[%emt 00:00:21]} 4. h4 {[%clk 01:41:34]} {[%emt 00:00:21]} h5
{[%clk 01:41:04]} {[%emt 00:00:13]} 5. c4 {[%clk 01:41:54]} {[%emt 00:00:10]}
e6 {[%clk 01:41:10]} {[%emt 00:00:25]} 6. Nc3 {[%clk 01:42:10]} {[%emt
00:00:14]} Ne7 {[%clk 01:38:45]} {[%emt 00:02:55]} 7. Nge2 {[%clk 01:42:22]}
{[%emt 00:00:18]} Nd7 {[%clk 01:36:10]} {[%emt 00:03:05]} 8. Ng3 {[%clk
01:42:43]} {[%emt 00:00:07]} Bg6 {[%clk 01:33:59]} {[%emt 00:02:43]} 9. Bg5
{[%clk 01:43:05]} {[%emt 00:00:07]} Qb6 {[%clk 01:22:25]} {[%emt 00:12:05]} 10.
Rc1 {[%clk 01:42:49]} {[%emt 00:00:45]} a6 {[%clk 01:13:37]} {[%emt 00:09:18]}
11. Be2 {[%clk 01:27:29]} {[%emt 00:15:50]} Nf5 {[%clk 00:59:00]} {[%emt
00:15:07]} 12. Nxf5 {[%clk 01:25:02]} {[%emt 00:02:57]} Bxf5 {[%clk 00:59:15]}
{[%emt 00:00:16]} 13. cxd5 {[%clk 01:11:57]} {[%emt 00:13:35]} cxd5 {[%clk
00:56:30]} {[%emt 00:03:15]} 14. O-O {[%clk 01:09:59]} {[%emt 00:02:26]} Bg6
{[%clk 00:21:58]} {[%emt 00:35:03]} 15. Qa4 {[%clk 01:09:10]} {[%emt 00:01:20]}
Be7 {[%clk 00:20:59]} {[%emt 00:01:29]} 16. Nb5 {[%clk 01:02:55]} {[%emt
00:06:45]} Rb8 {[%clk 00:16:57]} {[%emt 00:04:32]} 17. Nc7+ {[%clk 00:29:14]}
{[%emt 00:34:11]} Kd8 {[%clk 00:16:42]} {[%emt 00:00:45]} 18. Bd2 {[%clk
00:29:34]} {[%emt 00:00:09]} Qxb2 {[%clk 00:13:33]} {[%emt 00:03:40]} 19. Ba5
{[%clk 00:27:31]} {[%emt 00:02:33]} b6 {[%clk 00:12:59]} {[%emt 00:01:04]} 20.
Nxa6 {[%clk 00:27:20]} {[%emt 00:00:41]} bxa5 {[%clk 00:12:20]} {[%emt
00:01:09]} 21. Nxb8 {[%clk 00:27:28]} {[%emt 00:00:21]} Qxb8 {[%clk 00:12:18]}
{[%emt 00:00:32]} 22. Ba6 {[%clk 00:27:19]} {[%emt 00:00:39]} Nb6 {[%clk
00:03:52]} {[%emt 00:08:56]} 23. Qxa5 {[%clk 00:27:19]} {[%emt 00:00:30]} Ke8
{[%clk 00:04:10]} {[%emt 00:00:13]} 24. Qb5+ {[%clk 00:25:58]} {[%emt
00:01:51]} Kf8 {[%clk 00:04:06]} {[%emt 00:00:34]} 25. Rc8+ {[%clk 00:26:05]}
{[%emt 00:00:26]} 1-0

[Event "Masters Tournament (MTO)"]
[Site "Biel, Switzerland"]
[Date "2026.07.22"]
[Round "9.26"]
[White "Ivana Maria, Furtado"]
[Black "Berezovskii, Arina"]
[Result "1-0"]
[TimeControl "100+30+30sec/move"]
[WhiteTitle "-"]
[BlackTitle "-"]
[WhiteFideId "5048400"]
[BlackFideId "34449850"]
[WhiteElo "2182"]
[BlackElo "1906"]

1. d4 {[%clk 01:40:31]} {[%emt 00:00:29]} Nf6 {[%clk 01:40:54]} {[%emt
00:00:08]} 2. Nf3 {[%clk 01:40:50]} {[%emt 00:00:09]} e6 {[%clk 01:41:17]}
{[%emt 00:00:07]} 3. g3 {[%clk 01:41:04]} {[%emt 00:00:17]} d5 {[%clk
01:38:49]} {[%emt 00:02:58]} 4. Bg2 {[%clk 01:41:12]} {[%emt 00:00:22]} Bb4+
{[%clk 01:38:49]} {[%emt 00:00:30]} 5. c3 {[%clk 01:41:12]} {[%emt 00:00:29]}
Be7 {[%clk 01:38:47]} {[%emt 00:00:33]} 6. O-O {[%clk 01:41:04]} {[%emt
00:00:38]} c6 {[%clk 01:32:19]} {[%emt 00:06:59]} 7. Ne5 {[%clk 01:37:09]}
{[%emt 00:04:24]} Nbd7 {[%clk 01:29:40]} {[%emt 00:03:08]} 8. f4 {[%clk
01:36:59]} {[%emt 00:00:40]} Ne4 {[%clk 01:24:10]} {[%emt 00:06:01]} 9. e3
{[%clk 01:30:46]} {[%emt 00:06:43]} O-O {[%clk 01:22:05]} {[%emt 00:02:36]} 10.
c4 {[%clk 01:28:55]} {[%emt 00:02:21]} f5 {[%clk 01:19:33]} {[%emt 00:03:01]}
11. b3 {[%clk 01:22:17]} {[%emt 00:07:08]} Ndf6 {[%clk 01:16:07]} {[%emt
00:03:56]} 12. Bb2 {[%clk 01:21:40]} {[%emt 00:01:07]} Bd7 {[%clk 01:14:48]}
{[%emt 00:01:49]} 13. c5 {[%clk 01:19:30]} {[%emt 00:02:41]} Be8 {[%clk
01:13:20]} {[%emt 00:01:57]} 14. b4 {[%clk 01:18:07]} {[%emt 00:01:53]} b5
{[%clk 01:07:13]} {[%emt 00:06:37]} 15. a4 {[%clk 01:12:48]} {[%emt 00:05:50]}
a6 {[%clk 01:05:41]} {[%emt 00:02:02]} 16. Qd3 {[%clk 01:09:51]} {[%emt
00:03:26]} bxa4 {[%clk 00:54:03]} {[%emt 00:12:08]} 17. Rxa4 {[%clk 01:07:05]}
{[%emt 00:03:16]} a5 {[%clk 00:53:34]} {[%emt 00:01:00]} 18. Na3 {[%clk
01:05:11]} {[%emt 00:02:23]} axb4 {[%clk 00:46:03]} {[%emt 00:08:01]} 19. Rxb4
{[%clk 01:04:10]} {[%emt 00:01:31]} Rb8 {[%clk 00:41:42]} {[%emt 00:04:51]} 20.
Nc2 {[%clk 01:00:08]} {[%emt 00:04:32]} Bd7 {[%clk 00:39:41]} {[%emt 00:02:31]}
21. Rb1 {[%clk 00:51:09]} {[%emt 00:09:29]} Qc7 {[%clk 00:35:16]} {[%emt
00:04:55]} 22. Bc1 {[%clk 00:49:46]} {[%emt 00:01:53]} Rxb4 {[%clk 00:34:03]}
{[%emt 00:01:44]} 23. Rxb4 {[%clk 00:45:06]} {[%emt 00:05:09]} Rb8 {[%clk
00:31:58]} {[%emt 00:02:35]} 24. Bf1 {[%clk 00:38:24]} {[%emt 00:07:12]} Rxb4
{[%clk 00:27:55]} {[%emt 00:04:33]} 25. Nxb4 {[%clk 00:38:48]} {[%emt
00:00:06]} Qb7 {[%clk 00:26:29]} {[%emt 00:01:56]} 26. Ba3 {[%clk 00:36:17]}
{[%emt 00:03:01]} Be8 {[%clk 00:22:53]} {[%emt 00:04:06]} 27. Qa6 {[%clk
00:35:51]} {[%emt 00:00:57]} Qxa6 {[%clk 00:20:36]} {[%emt 00:02:47]} 28. Bxa6
{[%clk 00:35:35]} {[%emt 00:00:45]} Ng4 {[%clk 00:19:14]} {[%emt 00:01:52]} 29.
Nbxc6 {[%clk 00:30:31]} {[%emt 00:05:34]} Bxc6 {[%clk 00:17:42]} {[%emt
00:02:02]} 30. Nxc6 {[%clk 00:30:27]} {[%emt 00:00:35]} Kf8 {[%clk 00:17:30]}
{[%emt 00:00:41]} 31. Bc1 {[%clk 00:27:11]} {[%emt 00:03:46]} g5 {[%clk
00:14:58]} {[%emt 00:03:02]} 32. Kg2 {[%clk 00:25:47]} {[%emt 00:01:53]} h5
{[%clk 00:13:48]} {[%emt 00:01:41]} 33. h3 {[%clk 00:23:46]} {[%emt 00:02:31]}
Ngf6 {[%clk 00:12:42]} {[%emt 00:01:36]} 34. Bc8 {[%clk 00:23:33]} {[%emt
00:00:43]} Kf7 {[%clk 00:12:43]} {[%emt 00:00:30]} 35. Ne5+ {[%clk 00:23:54]}
{[%emt 00:00:08]} Ke8 {[%clk 00:10:22]} {[%emt 00:02:51]} 36. Bxe6 {[%clk
00:24:01]} {[%emt 00:00:23]} gxf4 {[%clk 00:10:05]} {[%emt 00:00:47]} 37. gxf4
{[%clk 00:24:02]} {[%emt 00:00:29]} h4 {[%clk 00:08:24]} {[%emt 00:02:10]} 38.
Bxf5 {[%clk 00:23:52]} {[%emt 00:00:41]} Ng3 {[%clk 00:08:41]} {[%emt
00:00:13]} 39. Be6 {[%clk 00:22:42]} {[%emt 00:01:39]} Ne2 {[%clk 00:08:08]}
{[%emt 00:01:04]} 40. Ba3 {[%clk 00:22:22]} {[%emt 00:00:50]} Nc3 {[%clk
00:08:11]} {[%emt 00:00:27]} 41. Bb4 {[%clk 00:20:31]} {[%emt 00:02:21]} Nd1
{[%clk 00:07:15]} {[%emt 00:01:26]} 42. Kf3 {[%clk 00:20:28]} {[%emt 00:00:33]}
Nb2 {[%clk 00:06:55]} {[%emt 00:00:49]} 43. c6 {[%clk 00:19:44]} {[%emt
00:01:14]} Bxb4 {[%clk 00:04:59]} {[%emt 00:02:26]} 44. c7 {[%clk 00:19:57]}
{[%emt 00:00:18]} 1-0

[Event "Masters Tournament (MTO)"]
[Site "Biel, Switzerland"]
[Date "2026.07.22"]
[Round "9.27"]
[White "Yang, Sung-Jui"]
[Black "Udelnov, Valentin"]
[Result "1/2-1/2"]
[TimeControl "100+30+30sec/move"]
[WhiteTitle "-"]
[BlackTitle "-"]
[WhiteFideId "16301048"]
[BlackFideId "16265734"]
[WhiteElo "1935"]
[BlackElo "2269"]

1. d4 {[%clk 01:39:22]} {[%emt 00:01:37]} Nf6 {[%clk 01:40:55]} {[%emt
00:00:05]} 2. c4 {[%clk 01:39:42]} {[%emt 00:00:10]} e6 {[%clk 01:41:22]}
{[%emt 00:00:04]} 3. Nf3 {[%clk 01:40:04]} {[%emt 00:00:08]} b6 {[%clk
01:41:48]} {[%emt 00:00:04]} 4. a3 {[%clk 01:40:14]} {[%emt 00:00:20]} Bb7
{[%clk 01:42:13]} {[%emt 00:00:04]} 5. Nc3 {[%clk 01:40:35]} {[%emt 00:00:08]}
Ne4 {[%clk 01:42:34]} {[%emt 00:00:09]} 6. Nxe4 {[%clk 01:40:14]} {[%emt
00:00:51]} Bxe4 {[%clk 01:43:01]} {[%emt 00:00:04]} 7. Nd2 {[%clk 01:40:11]}
{[%emt 00:00:33]} Bb7 {[%clk 01:43:26]} {[%emt 00:00:04]} 8. e4 {[%clk
01:40:36]} {[%emt 00:00:05]} g6 {[%clk 01:43:46]} {[%emt 00:00:10]} 9. Bd3
{[%clk 01:40:27]} {[%emt 00:00:40]} Bg7 {[%clk 01:44:10]} {[%emt 00:00:06]} 10.
Nf3 {[%clk 01:40:14]} {[%emt 00:00:43]} O-O {[%clk 01:44:27]} {[%emt 00:00:13]}
11. O-O {[%clk 01:38:54]} {[%emt 00:01:49]} d6 {[%clk 01:44:53]} {[%emt
00:00:04]} 12. Qc2 {[%clk 01:25:43]} {[%emt 00:13:40]} Nd7 {[%clk 01:40:38]}
{[%emt 00:04:46]} 13. Re1 {[%clk 01:21:19]} {[%emt 00:04:54]} a5 {[%clk
01:40:15]} {[%emt 00:00:53]} 14. b3 {[%clk 01:20:59]} {[%emt 00:00:50]} e5
{[%clk 01:32:03]} {[%emt 00:08:42]} 15. Bb2 {[%clk 01:17:58]} {[%emt 00:03:31]}
f5 {[%clk 01:25:38]} {[%emt 00:06:55]} 16. dxe5 {[%clk 01:18:02]} {[%emt
00:00:26]} dxe5 {[%clk 01:25:55]} {[%emt 00:00:13]} 17. b4 {[%clk 01:09:37]}
{[%emt 00:08:55]} Qe7 {[%clk 01:20:23]} {[%emt 00:06:02]} 18. c5 {[%clk
01:04:06]} {[%emt 00:06:00]} bxc5 {[%clk 01:14:41]} {[%emt 00:06:12]} 19. bxa5
{[%clk 01:04:03]} {[%emt 00:00:34]} Kh8 {[%clk 01:13:24]} {[%emt 00:01:47]} 20.
exf5 {[%clk 00:41:27]} {[%emt 00:23:06]} Bxf3 {[%clk 01:10:58]} {[%emt
00:02:56]} 21. gxf3 {[%clk 00:41:51]} {[%emt 00:00:05]} gxf5 {[%clk 00:44:34]}
{[%emt 00:26:55]} 22. Bc3 {[%clk 00:40:48]} {[%emt 00:01:32]} Qh4 {[%clk
00:38:16]} {[%emt 00:06:49]} 23. Kh1 {[%clk 00:39:57]} {[%emt 00:01:20]} Qh5
{[%clk 00:25:34]} {[%emt 00:13:12]} 24. Qe2 {[%clk 00:37:36]} {[%emt 00:02:52]}
f4 {[%clk 00:10:46]} {[%emt 00:15:18]} 25. Rg1 {[%clk 00:37:21]} {[%emt
00:00:44]} Rf6 {[%clk 00:03:30]} {[%emt 00:07:47]} 26. Rg2 {[%clk 00:33:30]}
{[%emt 00:04:20]} Rh6 {[%clk 00:03:56]} {[%emt 00:00:05]} 27. Rd1 {[%clk
00:33:06]} {[%emt 00:00:53]} 1/2-1/2

[Event "Masters Tournament (MTO)"]
[Site "Biel, Switzerland"]
[Date "2026.07.22"]
[Round "9.28"]
[White "Aryan, Mehta"]
[Black "Gireada, Daniel"]
[Result "1-0"]
[TimeControl "100+30+30sec/move"]
[WhiteTitle "-"]
[BlackTitle "-"]
[WhiteFideId "33329664"]
[BlackFideId "1206451"]
[WhiteElo "1979"]
[BlackElo "2255"]

1. e4 {[%clk 01:40:39]} {[%emt 00:00:20]} c6 {[%clk 01:40:51]} {[%emt
00:00:10]} 2. Nc3 {[%clk 01:41:02]} {[%emt 00:00:07]} d5 {[%clk 01:41:00]}
{[%emt 00:00:22]} 3. Qf3 {[%clk 01:41:26]} {[%emt 00:00:06]} e6 {[%clk
01:35:24]} {[%emt 00:06:06]} 4. d4 {[%clk 01:41:50]} {[%emt 00:00:06]} dxe4
{[%clk 01:32:42]} {[%emt 00:03:13]} 5. Qxe4 {[%clk 01:42:13]} {[%emt 00:00:07]}
Nf6 {[%clk 01:32:51]} {[%emt 00:00:20]} 6. Qh4 {[%clk 01:42:39]} {[%emt
00:00:05]} Be7 {[%clk 01:30:27]} {[%emt 00:02:54]} 7. Nf3 {[%clk 01:43:01]}
{[%emt 00:00:07]} Nbd7 {[%clk 01:23:58]} {[%emt 00:06:59]} 8. Bd3 {[%clk
01:39:46]} {[%emt 00:03:46]} b6 {[%clk 01:02:47]} {[%emt 00:21:42]} 9. O-O
{[%clk 01:33:46]} {[%emt 00:06:29]} Bb7 {[%clk 00:59:20]} {[%emt 00:03:57]} 10.
Ne5 {[%clk 01:25:31]} {[%emt 00:08:45]} Nd5 {[%clk 00:35:38]} {[%emt 00:24:12]}
11. Qg3 {[%clk 01:24:37]} {[%emt 00:01:22]} Nxe5 {[%clk 00:26:44]} {[%emt
00:09:25]} 12. dxe5 {[%clk 01:24:18]} {[%emt 00:00:49]} g6 {[%clk 00:25:17]}
{[%emt 00:01:58]} 13. Ne4 {[%clk 01:21:28]} {[%emt 00:03:18]} Qc7 {[%clk
00:21:40]} {[%emt 00:04:09]} 14. Bg5 {[%clk 01:18:30]} {[%emt 00:03:27]} O-O
{[%clk 00:13:02]} {[%emt 00:09:09]} 15. c4 {[%clk 01:14:30]} {[%emt 00:04:30]}
Bxg5 {[%clk 00:10:20]} {[%emt 00:03:11]} 16. Qxg5 {[%clk 01:14:00]} {[%emt
00:01:00]} f5 {[%clk 00:10:41]} {[%emt 00:00:09]} 17. exf6 {[%clk 01:10:45]}
{[%emt 00:03:46]} Nf4 {[%clk 00:11:04]} {[%emt 00:00:07]} 18. Bc2 {[%clk
01:09:10]} {[%emt 00:02:05]} c5 {[%clk 00:10:46]} {[%emt 00:00:48]} 19. Rfe1
{[%clk 01:04:40]} {[%emt 00:05:00]} Rad8 {[%clk 00:10:28]} {[%emt 00:00:48]} 20.
Rad1 {[%clk 01:02:20]} {[%emt 00:02:49]} Rxd1 {[%clk 00:09:46]} {[%emt
00:01:12]} 21. Bxd1 {[%clk 01:00:58]} {[%emt 00:01:52]} Bxe4 {[%clk 00:08:12]}
{[%emt 00:02:05]} 22. Rxe4 {[%clk 01:00:39]} {[%emt 00:00:49]} Qd6 {[%clk
00:07:13]} {[%emt 00:01:29]} 23. Bg4 {[%clk 00:59:12]} {[%emt 00:01:55]} Qd3
{[%clk 00:07:09]} {[%emt 00:00:36]} 24. Re1 {[%clk 00:58:28]} {[%emt 00:01:13]}
Qd2 {[%clk 00:07:33]} {[%emt 00:00:07]} 25. Qe5 {[%clk 00:52:54]} {[%emt
00:06:04]} Nd3 {[%clk 00:04:09]} {[%emt 00:03:55]} 26. Qxe6+ {[%clk 00:52:42]}
{[%emt 00:00:41]} Kh8 {[%clk 00:04:34]} {[%emt 00:00:05]} 27. Rf1 {[%clk
00:52:55]} {[%emt 00:00:17]} Qxb2 {[%clk 00:04:57]} {[%emt 00:00:06]} 28. Qd7
{[%clk 00:52:43]} {[%emt 00:00:39]} Qxf6 {[%clk 00:03:50]} {[%emt 00:01:42]} 29.
Qxd3 {[%clk 00:53:08]} {[%emt 00:00:04]} Rd8 {[%clk 00:04:14]} {[%emt
00:00:06]} 30. Qf3 {[%clk 00:51:52]} {[%emt 00:01:41]} Qb2 {[%clk 00:02:52]}
{[%emt 00:01:56]} 31. Re1 {[%clk 00:50:58]} {[%emt 00:01:25]} h5 {[%clk
00:02:47]} {[%emt 00:00:35]} 32. Bxh5 {[%clk 00:50:29]} {[%emt 00:00:58]} 1-0